{"text_format":"1","workbook":"xlsx","n_sheets":3,"sheets":["НефинФ1_ru","НефинФ2_ru","Лист1"],"not_rendered":{"charts":0,"images":0,"macros":0,"external_links":2,"defined_names":2,"comments":0,"pivot_tables":0},"unopened":[],"bounds":{"document_bytes":16777216,"sheet_cells":100000,"rows_first":2000,"rows_last":500,"rows_between":2000,"halvings":0,"cell_chars":16384,"cell_head_chars":4096},"cells_cut":0,"cells_raw":0,"read":"whole","date_system":"1900"}

{"sheet":"НефинФ1_ru","index":0,"n_rows":118,"n_cols":6,"rows_kept":118,"cut":false,"hidden":false,"merged":[[103,1,103,2],[104,1,104,2],[105,1,105,2],[106,1,106,5],[95,1,95,2],[96,1,96,2],[97,1,97,2],[98,1,98,2],[99,1,99,2],[102,1,102,2],[94,1,94,2],[83,1,83,2],[84,1,84,2],[85,1,85,2],[86,1,86,2],[87,1,87,2],[88,1,88,2],[89,1,89,2],[90,1,90,2],[91,1,91,2],[92,1,92,2],[93,1,93,2],[82,1,82,2],[71,1,71,2],[72,1,72,2],[73,1,73,2],[74,1,74,2],[75,1,75,2],[76,1,76,2],[77,1,77,2],[78,1,78,2],[79,1,79,2],[80,1,80,2],[81,1,81,2],[70,1,70,2],[59,1,59,2],[60,1,60,2],[61,1,61,2],[62,1,62,2],[63,1,63,2],[64,1,64,2],[65,1,65,2],[66,1,66,2],[67,1,67,2],[68,1,68,2],[69,1,69,5],[58,1,58,2],[47,1,47,2],[48,1,48,2],[49,1,49,2],[50,1,50,2],[51,1,51,2],[52,1,52,2],[53,1,53,2],[54,1,54,2],[55,1,55,2],[56,1,56,2],[57,1,57,2],[46,1,46,2],[14,1,14,5],[15,1,15,5],[36,1,36,2],[38,1,38,5],[39,1,39,2],[40,1,40,2],[41,1,41,2],[42,1,42,2],[43,1,43,2],[44,1,44,2],[45,1,45,2],[12,2,12,5],[0,1,0,5],[1,1,1,5],[2,1,2,5],[3,1,3,5],[4,1,4,5],[5,1,5,5],[6,1,6,5],[8,1,8,5],[9,1,9,5],[10,1,10,5],[11,1,11,5]]}
["","Приложение 2"]
["","к приказу Министра финансов"]
["","Республики Казахстан"]
["","от 20 августа 2010 года № 422"]
["",""]
["","Форма 1"]
["","Наименование организации: ТОО \"Жаикмунай\""]
["","","","","",""]
["","Организационно-правовая форма: Товарищество с ограниченной ответственностью"]
["","Тип отчета: Не консолидированный"]
["","Среднегодовая численность работников: 965 чел."]
["","Субъект предпринимательства: Средний"]
["","Юридический адрес (организации): ","Казахстан, 090000, Западно-Казахстанская область, Уральск г.а., проспект Евразия 59/2, тел: 87112986600, факс: 8711986601"]
["","","","","",""]
["","Бухгалтерский баланс"]
["","по состоянию на 31.03.2014"]
["","","","","",""]
["","","","","","тыс. тенге"]
[]
[]
[]
[]
[]
[]
[]
[]
[]
[]
[]
[]
[]
[]
[]
[]
[]
[]
["","Наименование статьи",null,"Код строки","На конец отчетного периода","На начало отчетного периода"]
[]
["","Активы"]
["","I. Краткосрочные активы:",null,"","",""]
["","Денежные средства и их эквиваленты",null,"010",35571771,22261251]
["","Финансовые активы, имеющиеся в наличии для продажи",null,"011","-","-"]
["","Производные финансовые инструменты",null,"012","-","-"]
["","Финансовые активы, учитываемые по справедливой стоимости через прибыли и убытки",null,"013","-","-"]
["","Финансовые активы, удерживаемые до погашения",null,"014","-","-"]
["","Прочие краткосрочные финансовые активы",null,"015","-",3840250]
["","Краткосрочная торговая и прочая дебиторская задолженность",null,"016",19751659,10388631]
["","Текущий подоходный налог",null,"017",{"$f":"SUMIF('[1]BS-PL'!$AF$26:$AF$114,C48,'[1]BS-PL'!$AE$26:$AE$114)","v":0},"-"]
["","Запасы",null,"018",4165889,3392560]
["","Прочие краткосрочные активы",null,"019",6477414,5332014]
["","Итого краткосрочных активов (сумма строк с 010 по 019)",null,100,{"$f":"SUM(E41:E50)","v":65966733},{"$f":"SUM(F41:F50)","v":45214706}]
["","Активы (или выбывающие группы), предназначенные для продажи",null,101,{"$f":"SUMIF('[1]BS-PL'!$AF$26:$AF$114,C52,'[1]BS-PL'!$AE$26:$AE$114)","v":0},"-"]
["","II. Долгосрочные активы",null,""]
["","Финансовые активы, имеющиеся в наличии для продажи",null,110,{"$f":"SUMIF('[1]BS-PL'!$AF$26:$AF$114,C54,'[1]BS-PL'!$AE$26:$AE$114)","v":0},"-"]
["","Производные финансовые инструменты",null,111,{"$f":"SUMIF('[1]BS-PL'!$AF$26:$AF$114,C55,'[1]BS-PL'!$AE$26:$AE$114)","v":0},"-"]
["","Финансовые активы, учитываемые по справедливой стоимости через прибыли и убытки",null,112,{"$f":"SUMIF('[1]BS-PL'!$AF$26:$AF$114,C56,'[1]BS-PL'!$AE$26:$AE$114)","v":0},"-"]
["","Финансовые активы, удерживаемые до погашения",null,113,{"$f":"SUMIF('[1]BS-PL'!$AF$26:$AF$114,C57,'[1]BS-PL'!$AE$26:$AE$114)","v":0},"-"]
["","Прочие долгосрочные финансовые активы",null,114,5344610,8334996]
["","Долгосрочная торговая и прочая дебиторская задолженность",null,115,38342,17918]
["","Инвестиции, учитываемые методом долевого участия",null,116,{"$f":"SUMIF('[1]BS-PL'!$AF$26:$AF$114,C60,'[1]BS-PL'!$AE$26:$AE$114)","v":0},"-"]
["","Инвестиционное имущество",null,117,{"$f":"SUMIF('[1]BS-PL'!$AF$26:$AF$114,C61,'[1]BS-PL'!$AE$26:$AE$114)","v":0},"-"]
["","Основные средства",null,118,200799478,173260373]
["","Биологические активы",null,119,1073,905]
["","Разведочные и оценочные активы",null,120,3823127,3138836]
["","Нематериальные активы",null,121,126094,103439]
["","Отложенные налоговые активы",null,122,{"$f":"SUMIF('[1]BS-PL'!$AF$26:$AF$114,C66,'[1]BS-PL'!$AE$26:$AE$114)","v":0},"-"]
["","Прочие долгосрочные активы",null,123,46862858,32716997]
["","Итого долгосрочных активов (сумма строк с 110 по 123)",null,200,{"$f":"SUM(E54:E67)","v":256995582},{"$f":"SUM(F54:F67)","v":217573464}]
["","Баланс (строка 100 +строка 101+ строка 200)",null,"",{"$f":"E51+E52+E68","v":322962315},{"$f":"F68+F51","v":262788170}]
["","Обязательство и капитал"]
["","III. Краткосрочные обязательства",null,"","",""]
["","Займы",null,210,3628867,4942991]
["","Производные финансовые инструменты",null,211,"-","-"]
["","Прочие краткосрочные финансовые обязательства",null,212,16988139,25683]
["","Краткосрочная торговая и прочая кредиторская задолженность",null,213,12709980,9693758]
["","Краткосрочные резервы",null,214,2039004,1860594]
["","Текущие налоговые обязательства по подоходному налогу ",null,215,4774,27190]
["","Вознаграждения работникам",null,216,326992,210918]
["","Прочие краткосрочные обязательства",null,217,{"$f":"54347-1","v":54346},819776]
["","Итого краткосрочных обязательств (сумма строк с 210 по 217)",null,300,{"$f":"SUM(E72:E79)","v":35752102},{"$f":"SUM(F72:F79)","v":17580910}]
["","Обязательства выбывающих групп, предназначенных для продажи",null,301,"-","-"]
["","IV. Долгосрочные обязательства",null,"","",""]
["","Займы",null,310,134869918,127627456]
["","Производные финансовые инструменты",null,311,"-","-"]
["","Прочие долгосрочные финансовые обязательства",null,312,"-","-"]
["","Долгосрочная торговая и прочая кредиторская задолженность",null,313,"-","-"]
["","Долгосрочные резервы",null,314,3665178,3115609]
["","Отложенные налоговые обязательства",null,315,33769805,23432376]
["","Прочие долгосрочные обязательства",null,316,"-","-"]
["","Итого долгосрочных обязательств (сумма строк с 310 по 316)",null,400,{"$f":"SUM(E83:E89)","v":172304901},{"$f":"SUM(F83:F89)","v":154175441}]
["","V. Капитал",null,"","",""]
["","Уставный (акционерный) капитал",null,410,600,600]
["","Эмиссионный доход",null,411,"-","-"]
["","Выкупленные собственные долевые инструменты",null,412,"-","-"]
["","Резервы",null,413,27773092,10468454]
["","Нераспределенная прибыль (непокрытый убыток)",null,414,87131620,80562765]
["","Итого капитал, относимый на собственников материнской организации (сумма строк с 410 по 414)",null,420,{"$f":"SUM(E92:E96)","v":114905312},{"$f":"SUM(F92:F96)","v":91031819}]
["","Доля неконтролирующих собственников",null,421,"-","-"]
["","Всего капитал (строка 420 +/- строка 421)",null,500,{"$f":"E97","v":114905312},{"$f":"F97","v":91031819}]
["","Баланс (строка 300+строка 301+строка 400 + строка 500)",null,"",{"$f":"E99+E80+E90","v":322962315},{"$f":"F99+F80+F90","v":262788170}]
[null,"","","","",""]
[null,"","","","",""]
[null,"Руководитель: Вендель Херманн Хайнц Томас",null,"","",""]
[null,"                                                (фамилия, имя, отчество) ",null,"","(подпись)",""]
[null,"Главный бухгалтер: Шошинова Ольга Борисовна",null,"","",""]
[null,"                                                (фамилия, имя, отчество)",null,"","(подпись)",""]
[null,"Место печати"]
[]
[]
[]
[]
[]
[]
[]
[]
[]
[]
[null,null,null,null,{"$f":"E100-E69","v":0},{"$f":"F100-F69","v":0}]

{"sheet":"НефинФ2_ru","index":1,"n_rows":73,"n_cols":5,"rows_kept":73,"cut":false,"hidden":false,"merged":[[42,1,42,4],[59,1,59,4]]}
["",null,null,null,"Приложение 3"]
["",null,null,null,"к приказу Министра финансов"]
["",null,null,null,"Республики Казахстан"]
["",null,null,null,"от 20 августа 2010 года №422"]
[""]
["","Наименование организации","ТОО \"Жаикмунай\""]
["","Сведения о реорганизации","Не применимо"]
["","Вид деятельности организации","Добыча сырой нефти и попутного газа"]
["","Организационно-правовая форма",{"$f":"'[2]BS 422'!C8","v":"Товарищестово  с ограниченной  ответсвенностью"}]
["","Форма отчетности:","консолидированная/неконсолидированная"]
["","Среднегодовая численность работников",{"$f":"'[2]BS 422'!C10","v":965},"чел."]
["","Субъект предпринимательства","малый / средний/ крупный"]
[null,"Юридический адрес (организации)","Казахстан, 090000, Западно-Казахстанская область, "]
[null,null,"Уральск г.а., Проспект Евразия  59/2 , "]
[null,null,"тел: 8(7112)986610, факс: 8 (7112)986601, "]
[]
[null,"ОТЧЕТ О ПРИБЫЛЯХ И УБЫТКАХ"]
[null,{"$f":"'[2]BS 422'!B17","v":"по состоянию на \"31 \" марта  2014 года"}]
[]
["","Наименование показателей","Код строки","За отчетный период","За предыдущий период"]
[]
["","Выручка","010",38629562,34429783]
["","Себестоимость реализованных товаров и услуг","011",9414242,10400400]
["","Валовая прибыль (строка 010 – строка 011)","012",{"$f":"D22-D23","v":29215320},{"$f":"E22-E23","v":24029383}]
["","Расходы по реализации","013",6101253,4613495]
["","Административные расходы","014",476555,1555228]
["","Прочие расходы","015",3001823,177387]
["","Прочие доходы","016",2713743,225353]
["","Итого операционная прибыль (убыток) (+/- строки с 012 по 016)","020",{"$f":"D24-D25-D26-D27+D28","v":22349432},{"$f":"E24-E25-E26-E27+E28","v":17908626}]
["","Доходы по финансированию","021",77416,11155]
["","Расходы по финансированию","022",3385501,2094285]
["","Доля организации в прибыли (убытке) ассоциированных организаций и совместной деятельности, учитываемых по методу долевого участия","023","-","-"]
["","Прочие неоперационные доходы","024","-","-"]
["","Прочие неоперационные расходы","025","-","-"]
["","Прибыль (убыток) до налогообложения (+/- строки с 020 по 025)",100,{"$f":"D29+D30-D31","v":19041347},{"$f":"E29+E30-E31","v":15825496}]
["","Расходы по подоходному налогу",101,12472492,6447046]
["","Прибыль (убыток) после налогообложения от продолжающейся деятельности (строка 100 – строка 101)",200,{"$f":"D35-D36","v":6568855},{"$f":"E35-E36","v":9378450}]
["","Прибыль (убыток) после налогообложения от прекращенной деятельности",201]
["","Прибыль за год (строка 200 + строка 201) относимая на:",300,{"$f":"D37","v":6568855},{"$f":"E37","v":9378450}]
["","собственников материнской организации","",{"$f":"D39","v":6568855},{"$f":"E39","v":9378450}]
["","долю неконтролирующих собственников",""]
["","Прочая совокупная прибыль, всего (сумма строк с 410 по 420):",400,{"$f":"SUM(D44:D54)","v":17304638},{"$f":"SUM(E44:E54)","v":48867}]
["","в том числе:"]
["","Переоценка основных средств",410]
["","Переоценка финансовых активов, имеющихся в наличии для продажи",411]
["","Доля в прочей совокупной прибыли (убытке) ассоциированных организаций и совместной деятельности, учитываемых по методу долевого участия",412]
["","Актуарные прибыли (убытки) по пенсионным обязательствам",413]
["","Эффект изменения в ставке подоходного налога на отсроченный налог дочерних организаций",414]
["","Хеджирование денежных потоков",415]
["","Курсовая разница по инвестициям в зарубежные организации",416]
["","Хеджирование чистых инвестиций в зарубежные операции",417]
["","Прочие компоненты прочей совокупной прибыли",418,17304638,48867]
["","Корректировка при реклассификации в составе прибыли (убытка)",419]
["","Налоговый эффект компонентов прочей совокупной прибыли",420]
["","Общая совокупная прибыль (строка 300 + строка 400)",500,{"$f":"D39+D42","v":23873493},{"$f":"E39+E42","v":9427317}]
["","Общая совокупная прибыль относимая на:","","",""]
["","собственников материнской организации","",{"$f":"D55","v":23873493},{"$f":"E55","v":9427317}]
["","доля неконтролирующих собственников",""]
["","Прибыль на акцию:",600]
["","в том числе:"]
["","Базовая прибыль на акцию:","","",""]
["","от продолжающейся деятельности",""]
["","от прекращенной деятельности",""]
["","Разводненная прибыль на акцию:","","",""]
["","от продолжающейся деятельности",""]
["","от прекращенной деятельности",""]
[null,"","","",""]
[null,"","","",""]
[null,"Руководитель: Вендель Херманн Хайнц Томас","","",""]
[null,"                                                (фамилия, имя, отчество) ","","(подпись)",""]
[null,"Главный бухгалтер: Шошинова Ольга Борисовна","","",""]
[null,"                                                (фамилия, имя, отчество)","","(подпись)",""]
[null,"Место печати","","",""]

{"sheet":"Лист1","index":2,"n_rows":0,"n_cols":0,"rows_kept":0,"cut":false,"hidden":false,"merged":[]}